bitfinex-derivatives/quotes_BTCF0:USTF0_20230106
["timestamp","ask_amount","ask_price","bid_price","bid_amount"]
[1673000701051,0.04002616,16800.0,16799.0,5.20962955]
[1673000704315,0.04002616,16800.0,16799.0,5.70242597]
[1673000705048,0.04002616,16800.0,16799.0,5.88064957]
[1673000705260,0.04002616,16800.0,16799.0,5.70242597]
[1673000705471,0.04002616,16800.0,16799.0,5.88065121]
[1673000705677,0.04002616,16800.0,16799.0,5.27925137]
[1673000705884,0.04002616,16800.0,16799.0,5.88065137]
[1673000707353,0.04002616,16800.0,16799.0,5.70242597]
[1673000707780,0.04002616,16800.0,16799.0,5.88065366]
[1673000708200,0.04002616,16800.0,16799.0,5.70242597]
[1673000708825,0.04002616,16800.0,16799.0,5.880652]
[1673000709147,0.04002616,16800.0,16799.0,5.70242597]
[1673000711663,0.04002616,16800.0,16799.0,5.12050696]
[1673000713447,0.04002616,16800.0,16799.0,5.29871776]
[1673000713981,0.04002616,16800.0,16799.0,5.79132325]
[1673000714188,0.04002616,16800.0,16799.0,5.12050696]
[1673000714397,0.04002616,16800.0,16799.0,5.29871776]
[1673000714606,0.04002616,16800.0,16799.0,5.65766347]
[1673000716184,0.04002616,16800.0,16799.0,5.65755906]
[1673000716398,0.04002616,16800.0,16799.0,5.79119323]
[1673000717130,0.04002616,16800.0,16799.0,5.65755906]
[1673000718179,0.04002616,16800.0,16799.0,5.79118327]
[1673000718599,0.04002616,16800.0,16799.0,5.65755906]
[1673000719019,0.04002616,16800.0,16799.0,5.79118268]
[1673000719231,0.03979024,16800.0,16799.0,5.70230738]
[1673000719442,0.03979024,16800.0,16799.0,6.31805903]
[1673000719655,0.03979024,16800.0,16799.0,5.70230738]
[1673000719866,0.03979024,16800.0,16799.0,6.31806651]
[1673000722913,0.03979024,16800.0,16799.0,5.88048692]
[1673000723123,0.03979024,16800.0,16799.0,5.6575278]
[1673000723986,0.03979024,16800.0,16799.0,5.88048692]
[1673000726095,0.03979024,16800.0,16799.0,5.6575278]
[1673000726721,0.03979024,16800.0,16799.0,5.88048692]
[1673000728819,0.03979024,16800.0,16799.0,5.70230738]
[1673000729036,0.03979024,16800.0,16799.0,5.88049765]
[1673000729246,0.03979024,16800.0,16799.0,5.70230738]
[1673000729459,0.03979024,16800.0,16799.0,5.88050139]
[1673000731552,0.03979024,16800.0,16799.0,5.40160738]
[1673000731770,0.03979024,16800.0,16799.0,5.70230738]
[1673000731986,0.03979024,16800.0,16799.0,5.88050909]
[1673000732516,0.03979024,16800.0,16799.0,5.65754997]
[1673000733869,0.03979024,16800.0,16799.0,5.79120536]
[1673000734287,0.03979024,16800.0,16799.0,5.07584674]
[1673000737444,0.03979024,16800.0,16799.0,4.47444674]
[1673000737653,0.03979024,16800.0,16799.0,5.07584674]
[1673000740283,0.03979024,16800.0,16799.0,4.98674445]
[1673000741645,0.03979024,16800.0,16799.0,5.12039984]
[1673000741850,0.03979024,16800.0,16799.0,4.90880213]
[1673000742797,0.03979024,16800.0,16799.0,4.77514674]
[1673000742991,0.03979024,16800.0,16799.0,4.90880213]
[1673000743313,0.03979024,16800.0,16799.0,4.0907]
[1673000743528,0.03979024,16800.0,16799.0,4.17980229]
[1673000743740,0.03979024,16800.0,16799.0,4.0907]
[1673000753723,0.03979024,16800.0,16799.0,3.79]
[1673000753930,0.03979024,16800.0,16799.0,4.0907]
[1673000756875,0.03979024,16800.0,16799.0,3.79]
[1673000757076,0.03979024,16800.0,16799.0,4.0907]
[1673000760967,0.03979024,16800.0,16799.0,3.79]
[1673000761182,0.03979024,16800.0,16799.0,4.0907]
[1673000764648,0.03979024,16800.0,16799.0,0.3207]
[1673000764857,0.03979024,16800.0,16799.0,0.5207]
[1673000766948,0.03979024,16800.0,16799.0,0.22]
[1673000768739,0.23979024,16800.0,16799.0,0.2]
[1673000768949,0.25479024,16800.0,16799.0,0.201]
[1673000769161,0.23979024,16800.0,16799.0,0.2]
[1673000769483,0.25479024,16800.0,16799.0,0.201]
[1673000772327,0.25479024,16800.0,16799.0,0.2008266]
[1673000777263,0.05479024,16800.0,16799.0,0.2008266]
[1673000786934,0.05479024,16800.0,16799.0,0.5015266]
[1673000795754,0.05479024,16800.0,16799.0,0.2008266]
[1673000805952,0.05479024,16800.0,16799.0,0.5015266]
[1673000812684,0.05479024,16800.0,16799.0,0.2008266]
[1673000818878,0.25479024,16800.0,16799.0,0.2008266]
[1673000819088,1.14903105,16800.0,16799.0,0.2008266]
[1673000819929,0.94903105,16800.0,16799.0,0.2008266]
[1673000825394,0.94903105,16800.0,16799.0,0.200758]
[1673000850629,1.00203105,16800.0,16799.0,0.207758]
[1673000858088,1.00203105,16800.0,16799.0,0.508458]
[1673000861653,1.00203105,16800.0,16799.0,0.207758]
[1673000872479,1.00203105,16800.0,16799.0,0.20753363]
[1673000900966,1.30273105,16800.0,16799.0,0.008]
[1673000904028,1.00203105,16800.0,16799.0,0.008]
[1673000904241,1.30273105,16800.0,16799.0,0.008]
[1673000907074,1.00203105,16800.0,16799.0,0.008]
[1673000916323,1.30273105,16800.0,16799.0,0.008]
[1673000926001,1.30273105,16800.0,16799.0,0.00777515]
[1673000927682,1.00203105,16800.0,16799.0,0.00777515]
[1673000928103,1.30273105,16800.0,16799.0,0.00777515]
[1673000928519,1.00203105,16800.0,16799.0,0.00777515]
[1673000928735,1.30273105,16800.0,16799.0,0.00777515]
[1673000931892,1.00203105,16800.0,16799.0,0.00777515]
[1673000932106,1.30273105,16800.0,16799.0,0.00777515]
[1673000934627,1.00203105,16800.0,16799.0,0.00777515]
[1673000935040,1.30273105,16800.0,16799.0,0.00777515]
[1673000935669,1.00203105,16800.0,16799.0,0.00777515]
[1673000935889,1.30273105,16800.0,16799.0,0.00777515]
[1673000937668,1.00203105,16800.0,16799.0,0.00777515]
[1673000937869,1.30273105,16800.0,16799.0,0.00777515]
[1673000938292,1.00203105,16800.0,16799.0,0.00777515]
[1673000938508,1.30273105,16800.0,16799.0,0.00777515]
[1673000939136,1.00203105,16800.0,16799.0,0.00777515]
[1673000939555,1.30273105,16800.0,16799.0,0.00777515]
[1673000940410,1.00203105,16800.0,16799.0,0.00777515]
[1673000959551,1.30273105,16800.0,16799.0,0.00777515]
[1673000960809,1.00203105,16800.0,16799.0,0.00777515]
[1673000962172,1.30273105,16800.0,16799.0,0.00777515]
[1673000966169,1.00203105,16800.0,16799.0,0.00777515]
[1673000975940,1.00203105,16800.0,16799.0,0.00764061]
[1673000978469,1.30273105,16800.0,16799.0,0.00764061]
[1673000982566,1.00203105,16800.0,16799.0,0.00764061]
[1673000983297,1.30273105,16800.0,16799.0,0.00764061]
[1673000983822,1.00203105,16800.0,16799.0,0.00764061]
[1673000984138,1.30273105,16800.0,16799.0,0.00764061]
[1673000986558,1.00203105,16800.0,16799.0,0.00764061]
[1673000986774,1.30273105,16800.0,16799.0,0.00764061]
[1673000989298,1.00203105,16800.0,16799.0,0.00764061]
[1673000989511,1.30273105,16800.0,16799.0,0.00764061]
[1673000991187,1.00203105,16800.0,16799.0,0.00764061]
[1673000991394,1.30273105,16800.0,16799.0,0.00764061]
[1673000992124,1.00203105,16800.0,16799.0,0.00764061]
[1673000992333,1.30273105,16800.0,16799.0,0.00764061]
[1673000994339,1.00203105,16800.0,16799.0,0.00764061]
[1673000994657,1.30273105,16800.0,16799.0,0.00764061]
[1673000997715,1.00203105,16800.0,16799.0,0.00764061]
[1673000997919,1.30273105,16800.0,16799.0,0.00764061]
[1673001002548,1.00203105,16800.0,16799.0,0.00764061]
[1673001023793,1.00203105,16800.0,16799.0,0.00741752]
[1673001044507,1.30273105,16800.0,16799.0,0.00741752]
[1673001055350,1.00203105,16800.0,16799.0,0.00741752]
[1673001055656,1.30273105,16800.0,16799.0,0.00741752]
[1673001064596,1.00203105,16800.0,16799.0,0.00741752]
[1673001070999,1.00203105,16800.0,16799.0,0.00721335]
[1673001078045,1.00182043,16800.0,16799.0,0.00721335]
[1673001087708,1.00182043,16800.0,16799.0,0.30791335]
[1673001092550,1.00182043,16800.0,16799.0,0.00721335]
[1673001094337,0.10757962,16800.0,16799.0,0.00721335]
[1673001094743,0.10757962,16800.0,16799.0,0.09631564]
[1673001099589,0.07057962,16800.0,16799.0,0.09010229]
[1673001100638,0.03957962,16800.0,16799.0,0.08910229]
[1673001100848,0.04157962,16800.0,16799.0,0.12810229]
[1673001102209,0.04157962,16800.0,16799.0,0.039]
[1673001111044,0.04157962,16800.0,16799.0,0.72330229]
[1673001117144,0.04157962,16800.0,16799.0,0.6342]
[1673001124816,0.04157962,16800.0,16799.0,0.76785539]
[1673001131649,0.04157962,16800.0,16799.0,0.76777647]
[1673001132169,0.04157962,16800.0,16799.0,0.63412108]
[1673001132798,0.04151939,16800.0,16799.0,0.63412108]
[1673001133324,0.04151939,16800.0,16799.0,0.93482108]
[1673001135741,0.04151939,16800.0,16799.0,1.02400347]
[1673001139525,0.3219,16803.0,16800.0,0.7952]
[1673001139732,0.2,16804.0,16803.0,0.2]
[1673001140366,1.09591281,16804.0,16803.0,0.2]
[1673001141103,1.15891281,16804.0,16803.0,0.21]
[1673001145207,0.95891281,16804.0,16803.0,0.21]
[1673001148561,0.063,16804.0,16803.0,0.21]
[1673001150776,0.063,16804.0,16803.0,0.208]
[1673001150777,0.059,16804.0,16803.0,0.208]
[1673001168747,0.059,16804.0,16803.0,0.5087]
[1673001172233,0.059,16804.0,16803.0,1.1039]
[1673001185688,0.059,16804.0,16803.0,1.1038352]
[1673001188320,0.059,16804.0,16803.0,4.8738352]
[1673001192306,0.059,16804.0,16803.0,4.96301759]
[1673001193046,0.059,16804.0,16803.0,5.09667298]
[1673001194092,0.059,16804.0,16803.0,4.96301759]
[1673001200723,0.059,16804.0,16803.0,5.09667298]
[1673001201356,0.059,16804.0,16803.0,4.96301759]
[1673001201567,0.059,16804.0,16803.0,5.09667298]
[1673001205879,0.059,16804.0,16803.0,5.00749059]
[1673001206092,0.059,16804.0,16803.0,5.09661298]
[1673001206302,0.059,16804.0,16803.0,5.00749059]
[1673001207459,0.059,16804.0,16803.0,4.8738352]
[1673001209247,0.059,16804.0,16803.0,4.96295597]
[1673001209461,0.059,16804.0,16803.0,4.8738352]
[1673001216708,0.059,16804.0,16803.0,4.96295597]
[1673001216914,0.059,16804.0,16803.0,4.8738352]
[1673001218814,0.059,16804.0,16803.0,4.96295597]
[1673001219445,0.059,16804.0,16803.0,5.09661136]
[1673001219660,0.059,16804.0,16803.0,4.96295597]
[1673001221971,0.059,16804.0,16803.0,4.8738352]
[1673001222389,0.059,16804.0,16803.0,5.00749059]
[1673001224071,0.059,16804.0,16803.0,5.67822615]
[1673001224806,0.001,16804.0,16803.0,5.70522615]
[1673001225442,0.001,16804.0,16803.0,5.57157076]
[1673001225651,0.001,16804.0,16803.0,5.70529647]
[1673001225864,0.001,16804.0,16803.0,5.70529544]
[1673001226490,0.001,16804.0,16803.0,5.57157076]
[1673001226808,0.001,16804.0,16803.0,5.70529529]
[1673001227124,0.001,16804.0,16803.0,5.70529685]
[1673001229003,0.001,16804.0,16803.0,5.57157232]
[1673001232332,0.001,16804.0,16803.0,5.5713526]
[1673001232609,0.001,16804.0,16803.0,5.8720526]
[1673001234716,0.001,16804.0,16803.0,6.09501172]
[1673001234936,0.2,16807.0,16804.0,0.7952]
[1673001235140,0.2,16807.0,16805.0,0.58984037]
[1673001235456,0.3007,16808.0,16806.0,0.1]
[1673001235869,0.054,16807.0,16806.0,3.87]
[1673001238159,0.2,16810.0,16808.0,0.2]
[1673001238475,0.89641888,16809.0,16808.0,0.2]
[1673001238892,0.89641888,16809.0,16808.0,0.211]
[1673001240050,0.054,16810.0,16808.0,0.211]
[1673001240258,0.254,16810.0,16808.0,0.211]
[1673001240909,0.054,16809.0,16808.0,0.211]
[1673001241533,0.254,16810.0,16808.0,0.211]
[1673001242261,0.034,16809.0,16808.0,0.201]
[1673001242895,0.254,16810.0,16808.0,0.208]
[1673001244368,0.034,16809.0,16808.0,0.201]
[1673001245208,0.254,16810.0,16808.0,0.208]
[1673001245630,0.034,16809.0,16808.0,0.201]
[1673001246151,0.254,16810.0,16808.0,0.208]
[1673001246788,0.054,16810.0,16808.0,0.208]
[1673001247203,0.254,16810.0,16808.0,0.208]
[1673001247415,0.034,16809.0,16808.0,0.201]
[1673001247832,0.254,16810.0,16808.0,0.208]
[1673001248247,0.2,16810.0,16808.0,0.2]
[1673001248572,0.034,16809.0,16808.0,0.201]
[1673001248780,0.2,16810.0,16808.0,0.2]
[1673001248995,0.254,16810.0,16808.0,0.208]
[1673001249725,0.054,16810.0,16808.0,0.208]
[1673001249932,0.254,16810.0,16808.0,0.208]
[1673001250252,0.234,16810.0,16808.0,0.201]
[1673001250668,0.034,16810.0,16808.0,0.201]
[1673001252151,0.234,16810.0,16808.0,0.201]
[1673001252770,0.034,16810.0,16808.0,0.201]
[1673001255718,0.034,16810.0,16809.0,0.3007]
[1673001256560,0.2,16812.0,16809.0,0.3007]
[1673001256771,0.2,16812.0,16810.0,0.2]
[1673001257194,0.89444895,16811.0,16810.0,0.2]
[1673001257834,0.89444895,16811.0,16810.0,0.211]
[1673001259824,0.94844895,16811.0,16810.0,0.208]
[1673001270236,0.94835285,16811.0,16810.0,0.208]
[1673001272236,0.054,16811.0,16810.0,0.208]
[1673001282023,0.054,16811.0,16810.0,0.8032]
[1673001306739,0.254,16811.0,16810.0,0.8032]
[1673001308425,0.054,16811.0,16810.0,0.8032]
[1673001309062,0.254,16811.0,16810.0,0.8032]
[1673001309999,0.054,16811.0,16810.0,0.8032]
[1673001311892,0.254,16811.0,16810.0,0.8032]
[1673001314423,0.254,16811.0,16810.0,0.208]
[1673001316830,0.254,16811.0,16810.0,0.00780672]
[1673001317360,1.14883388,16811.0,16810.0,0.00780672]
[1673001324190,1.44953388,16811.0,16810.0,0.00780672]
[1673001330597,1.14883388,16811.0,16810.0,0.00780672]
[1673001330916,1.44953388,16811.0,16810.0,0.00780672]
[1673001338793,1.14883388,16811.0,16810.0,0.00780672]
[1673001339104,1.44953388,16811.0,16810.0,0.00780672]
[1673001344154,1.75023388,16811.0,16810.0,0.00780672]
[1673001345102,1.44953388,16811.0,16810.0,0.00780672]
[1673001345726,1.14883388,16811.0,16810.0,0.00780672]
[1673001346160,1.44953388,16811.0,16810.0,0.00780672]
[1673001346468,1.14883388,16811.0,16810.0,0.00780672]
[1673001346678,1.44953388,16811.0,16810.0,0.00780672]
[1673001348039,1.14883388,16811.0,16810.0,0.00780672]
[1673001348361,1.44953388,16811.0,16810.0,0.00780672]
[1673001356866,1.14883388,16811.0,16810.0,0.00780672]
[1673001357076,1.44953388,16811.0,16810.0,0.00780672]
[1673001359604,1.14883388,16811.0,16810.0,0.00780672]
[1673001359816,1.44953388,16811.0,16810.0,0.00780672]
[1673001369802,1.14883388,16811.0,16810.0,0.00780672]
[1673001370011,1.14883388,16811.0,16810.0,0.00769466]
[1673001380843,1.44953388,16811.0,16810.0,0.00769466]
[1673001381046,1.14883388,16811.0,16810.0,0.00769466]
[1673001381256,1.44953388,16811.0,16810.0,0.00769466]
[1673001382833,1.14883388,16811.0,16810.0,0.00769466]
[1673001390002,1.44953388,16811.0,16810.0,0.00769466]
[1673001390306,1.14883388,16811.0,16810.0,0.00769466]
[1673001390632,1.44953388,16811.0,16810.0,0.00769466]
[1673001401086,1.14883388,16811.0,16810.0,0.00769466]
[1673001401267,1.44953388,16811.0,16810.0,0.00769466]
[1673001401895,1.14883388,16811.0,16810.0,0.00769466]
[1673001402218,1.44953388,16811.0,16810.0,0.00769466]
[1673001410601,1.14883388,16811.0,16810.0,0.00769466]
[1673001410809,1.44953388,16811.0,16810.0,0.00769466]
[1673001417116,1.14883388,16811.0,16810.0,0.00769466]
[1673001418911,1.14883388,16811.0,16810.0,0.00757924]
[1673001420273,1.14883388,16811.0,16810.0,0.20757924]
[1673001423110,1.14861636,16811.0,16810.0,0.20757924]
[1673001429100,1.14861636,16811.0,16810.0,0.00757924]
[1673001431624,1.44931636,16811.0,16810.0,0.00757924]
[1673001438870,1.14861636,16811.0,16810.0,0.00757924]
[1673001442131,1.14861636,16811.0,16810.0,0.20757924]
[1673001469156,1.14861636,16811.0,16810.0,0.20749855]
[1673001483035,1.44931636,16811.0,16810.0,0.20749855]
[1673001486606,1.14861636,16811.0,16810.0,0.20749855]
[1673001507309,1.14861636,16811.0,16810.0,0.00749855]
[1673001508575,1.44931636,16811.0,16810.0,0.00749855]
[1673001516885,1.44931636,16811.0,16810.0,0.00736677]
[1673001523814,1.14861636,16811.0,16810.0,0.00736677]
[1673001524030,1.44931636,16811.0,16810.0,0.00736677]
[1673001534121,1.14861636,16811.0,16810.0,0.00736677]
[1673001534320,1.44931636,16811.0,16810.0,0.00736677]
[1673001534748,1.14861636,16811.0,16810.0,0.00736677]
[1673001535065,1.44931636,16811.0,16810.0,0.00736677]
[1673001536738,1.14861636,16811.0,16810.0,0.00736677]
[1673001536956,1.44931636,16811.0,16810.0,0.00736677]
[1673001537160,1.14861636,16811.0,16810.0,0.00736677]
[1673001537368,1.44931636,16811.0,16810.0,0.00736677]
[1673001547990,1.4492186,16811.0,16810.0,0.00736677]
[1673001553032,1.7499186,16811.0,16810.0,0.00736677]
[1673001565958,1.1485186,16811.0,16810.0,0.00736677]
[1673001566174,1.7499186,16811.0,16810.0,0.00736677]
[1673001578359,1.4492186,16811.0,16810.0,0.00736677]
[1673001585519,1.1485186,16811.0,16810.0,0.00736677]
[1673001585730,1.4492186,16811.0,16810.0,0.00736677]
[1673001589722,1.1485186,16811.0,16810.0,0.00736677]
[1673001589929,1.4492186,16811.0,16810.0,0.00736677]
[1673001593722,1.1485186,16811.0,16810.0,0.00736677]
[1673001594039,1.4492186,16811.0,16810.0,0.00736677]
[1673001596140,1.1485186,16811.0,16810.0,0.00736677]
[1673001596460,1.4492186,16811.0,16810.0,0.00736677]
[1673001597293,1.4492186,16811.0,16810.0,0.00720058]
[1673001600028,1.1485186,16811.0,16810.0,0.00720058]
[1673001600234,1.4492186,16811.0,16810.0,0.00720058]
[1673001601603,1.1485186,16811.0,16810.0,0.00720058]
[1673001601813,1.4492186,16811.0,16810.0,0.00720058]
[1673001606959,1.1485186,16811.0,16810.0,0.00720058]
[1673001607175,1.4492186,16811.0,16810.0,0.00720058]
[1673001614006,1.1485186,16811.0,16810.0,0.00720058]
[1673001614429,1.4492186,16811.0,16810.0,0.00720058]
[1673001614851,1.1485186,16811.0,16810.0,0.00720058]
[1673001615183,1.4492186,16811.0,16810.0,0.00720058]
[1673001619583,1.1485186,16811.0,16810.0,0.00720058]
[1673001620111,1.7499186,16811.0,16810.0,0.00720058]
[1673001622844,1.1485186,16811.0,16810.0,0.00720058]
[1673001623049,1.7499186,16811.0,16810.0,0.00720058]
[1673001627890,1.1485186,16811.0,16810.0,0.00720058]
[1673001628315,1.7499186,16811.0,16810.0,0.00720058]
[1673001630405,1.4492186,16811.0,16810.0,0.00720058]
[1673001630619,1.1485186,16811.0,16810.0,0.00720058]
[1673001630829,1.7499186,16811.0,16810.0,0.00720058]
[1673001635980,1.1485186,16811.0,16810.0,0.00720058]
[1673001636194,1.7499186,16811.0,16810.0,0.00720058]
[1673001636827,1.1485186,16811.0,16810.0,0.00720058]
[1673001637028,1.7499186,16811.0,16810.0,0.00720058]
[1673001641044,1.1485186,16811.0,16810.0,0.00720058]
[1673001641253,1.7499186,16811.0,16810.0,0.00720058]
[1673001645666,1.4492186,16811.0,16810.0,0.00712863]
[1673001653229,1.7499186,16811.0,16810.0,0.00712863]
[1673001660810,1.1485186,16811.0,16810.0,0.00712863]
[1673001661122,1.7499186,16811.0,16810.0,0.00712863]
[1673001662907,1.1485186,16811.0,16810.0,0.00712863]
[1673001663116,1.7499186,16811.0,16810.0,0.00712863]
[1673001674679,1.1485186,16811.0,16810.0,0.00712863]
[1673001674893,1.7499186,16811.0,16810.0,0.00712863]
[1673001682577,1.1485186,16811.0,16810.0,0.00712863]
[1673001682790,1.7499186,16811.0,16810.0,0.00712863]
[1673001684053,1.1485186,16811.0,16810.0,0.00712863]
[1673001684252,1.7499186,16811.0,16810.0,0.00712863]
[1673001688030,1.1485186,16811.0,16810.0,0.00712863]
[1673001688248,1.7499186,16811.0,16810.0,0.00712863]
[1673001690035,1.4492186,16811.0,16810.0,0.00712863]
[1673001690351,1.7499186,16811.0,16810.0,0.00712863]
[1673001693614,1.4492186,16811.0,16810.0,0.00712863]
[1673001693828,1.7499186,16811.0,16810.0,0.00712863]
[1673001695825,1.1485186,16811.0,16810.0,0.00712863]
[1673001696040,1.7499186,16811.0,16810.0,0.00712863]
[1673001696875,1.7499186,16811.0,16810.0,0.00696537]
[1673001697082,1.1485186,16811.0,16810.0,0.00696537]
[1673001697293,1.7499186,16811.0,16810.0,0.00696537]
[1673001698030,1.1485186,16811.0,16810.0,0.00696537]
[1673001698239,1.7499186,16811.0,16810.0,0.00696537]
[1673001698865,1.1485186,16811.0,16810.0,0.00696537]
[1673001699082,1.7499186,16811.0,16810.0,0.00696537]
[1673001699816,1.1485186,16811.0,16810.0,0.00696537]
[1673001700345,1.7499186,16811.0,16810.0,0.00696537]
[1673001700864,1.74968467,16811.0,16810.0,0.00696537]
[1673001706967,1.14828467,16811.0,16810.0,0.00696537]
[1673001707168,1.74968467,16811.0,16810.0,0.00696537]
[1673001708007,1.44898467,16811.0,16810.0,0.00696537]
[1673001708225,1.74968467,16811.0,16810.0,0.00696537]
[1673001708849,1.14828467,16811.0,16810.0,0.00696537]
[1673001709061,1.74968467,16811.0,16810.0,0.00696537]
[1673001713064,1.14828467,16811.0,16810.0,0.00696537]
[1673001713272,1.74968467,16811.0,16810.0,0.00696537]
[1673001736277,1.14828467,16811.0,16810.0,0.00696537]
[1673001736493,1.74968467,16811.0,16810.0,0.00696537]
[1673001740796,1.14828467,16811.0,16810.0,0.00696537]
[1673001741115,1.74968467,16811.0,16810.0,0.00696537]
[1673001745644,1.14828467,16811.0,16810.0,0.00696537]
[1673001745854,1.74968467,16811.0,16810.0,0.00696537]
[1673001751221,1.74968467,16811.0,16810.0,0.00681713]
[1673001753304,1.14828467,16811.0,16810.0,0.00681713]
[1673001753520,1.74968467,16811.0,16810.0,0.00681713]
[1673001755105,1.44898467,16811.0,16810.0,0.00681713]
[1673001755320,1.74968467,16811.0,16810.0,0.00681713]
[1673001759730,1.14828467,16811.0,16810.0,0.00681713]
[1673001759943,1.44898467,16811.0,16810.0,0.00681713]
[1673001760889,1.24898467,16811.0,16810.0,0.00681713]
[1673001764247,1.22053388,16811.0,16810.0,0.001]
[1673001767518,0.91983388,16811.0,16810.0,0.001]
[1673001768053,1.22053388,16811.0,16810.0,0.001]
[1673001783082,0.91983388,16811.0,16810.0,0.001]
[1673001783280,1.22053388,16811.0,16810.0,0.001]
[1673001785065,0.91983388,16811.0,16810.0,0.001]
[1673001785275,1.22053388,16811.0,16810.0,0.001]
[1673001795586,1.22053388,16811.0,16810.0,0.00080738]
[1673001799159,1.52123388,16811.0,16810.0,0.00080738]
[1673001807975,0.91983388,16811.0,16810.0,0.00080738]
[1673001808192,1.52123388,16811.0,16810.0,0.00080738]
[1673001815860,0.91983388,16811.0,16810.0,0.00080738]
[1673001816073,1.52123388,16811.0,16810.0,0.00080738]
[1673001819013,1.52123388,16811.0,16807.0,0.2]
[1673001819014,0.2,16810.0,16804.0,2.06614037]
[1673001819336,0.2,16807.0,16805.0,0.2]
[1673001819649,0.87523832,16806.0,16805.0,0.2]
[1673001820592,0.87523832,16806.0,16805.0,0.313]
[1673001820904,0.87523832,16806.0,16805.0,0.2]
[1673001821118,0.88123832,16806.0,16805.0,0.313]
[1673001825223,0.88123832,16806.0,16805.0,0.6137]
[1673001827739,0.88123832,16806.0,16805.0,0.313]
[1673001827949,0.88123832,16806.0,16805.0,0.6137]
[1673001835622,0.88123832,16806.0,16805.0,0.313]
[1673001835833,0.88123832,16806.0,16805.0,0.6137]
[1673001837511,0.88123832,16806.0,16805.0,0.313]
[1673001837722,0.88123832,16806.0,16805.0,0.6137]
[1673001838776,0.88123832,16806.0,16805.0,0.313]
[1673001838987,0.88123832,16806.0,16805.0,0.6137]
[1673001839936,0.88123832,16806.0,16805.0,0.313]
[1673001840151,0.88123832,16806.0,16805.0,0.6137]
[1673001843501,0.88123832,16806.0,16805.0,0.313]
[1673001844024,0.88123832,16806.0,16805.0,0.6137]
[1673001853591,0.88117071,16806.0,16805.0,0.6137]
[1673001854013,0.88117071,16806.0,16805.0,0.313]
[1673001855902,0.88117071,16806.0,16805.0,0.6137]
[1673001859158,0.88117071,16806.0,16805.0,4.3837]
[1673001860001,0.88117071,16806.0,16805.0,0.6137]
[1673001863061,0.88117071,16806.0,16805.0,0.313]
[1673001870935,0.88117071,16806.0,16805.0,0.40214037]
[1673001871254,0.88117071,16806.0,16805.0,0.53585093]
[1673001872403,0.88117071,16806.0,16805.0,0.40214037]
[1673001872826,0.88117071,16806.0,16805.0,0.53585093]
[1673001875148,0.88117071,16806.0,16805.0,0.40214037]
[1673001875666,0.006,16806.0,16805.0,1.13105093]
[1673001875872,0.006,16806.0,16805.0,1.131085]
[1673001876089,0.006,16806.0,16805.0,1.04191056]
[1673001876294,0.006,16806.0,16805.0,1.13106119]
[1673001879869,0.006,16806.0,16805.0,1.04191056]
[1673001880295,0.006,16806.0,16805.0,1.13102114]
[1673001880815,0.006,16806.0,16805.0,1.04191056]
[1673001881016,0.006,16806.0,16805.0,1.13102071]
[1673001881227,0.006,16806.0,16805.0,1.04191056]
[1673001881754,0.00519262,16806.0,16805.0,1.04191056]
[1673001881966,0.00519262,16806.0,16805.0,1.71265128]
[1673001882492,0.00519262,16806.0,16805.0,1.2201913]
[1673001882702,0.00519262,16806.0,16805.0,1.04191056]
[1673001883119,0.00519262,16806.0,16805.0,0.9082]
[1673001887747,0.00519262,16806.0,16805.0,1.5096]
[1673001888062,0.00519262,16806.0,16805.0,0.9082]
[1673001888265,0.00519262,16806.0,16805.0,1.5096]
[1673001890588,0.00519262,16806.0,16805.0,1.59867972]
[1673001893215,0.00519262,16806.0,16805.0,1.5096]
[1673001893528,0.00519262,16806.0,16805.0,1.59867972]
[1673001898146,0.00519262,16806.0,16805.0,1.5096]
[1673001906244,0.00519262,16806.0,16805.0,1.59867972]
[1673001907074,0.00519262,16806.0,16805.0,0.99727972]
[1673001907408,0.00519262,16806.0,16805.0,1.59867972]
[1673001908032,0.00519262,16806.0,16805.0,1.29797972]
[1673001908244,0.00519262,16806.0,16805.0,1.59867972]
[1673001912339,0.00519262,16806.0,16805.0,1.29797972]
[1673001912962,0.00519262,16806.0,16805.0,0.99727972]
[1673001913175,0.00519262,16806.0,16805.0,1.2089]
[1673001917273,0.00519262,16806.0,16805.0,0.9082]
[1673001917485,0.00519262,16806.0,16805.0,1.2089]
[1673001920426,0.00519262,16806.0,16805.0,0.9082]
[1673001920639,0.00519262,16806.0,16805.0,1.29797972]
[1673001928106,0.00519262,16806.0,16805.0,1.2089]
[1673001929149,0.00519262,16806.0,16805.0,0.9082]
[1673001929361,0.00519262,16806.0,16805.0,1.2089]
[1673001931249,0.00519262,16806.0,16805.0,4.9789]
[1673001932407,0.00519262,16806.0,16805.0,4.9787397]
[1673001935778,0.00519262,16806.0,16805.0,5.06781942]
[1673001938192,0.00519262,16806.0,16805.0,5.20152998]
[1673001939980,0.00519262,16806.0,16805.0,4.90082998]
[1673001940191,0.00519262,16806.0,16805.0,5.20152998]
[1673001940826,0.00519262,16806.0,16805.0,4.90082998]
[1673001941032,0.00519262,16806.0,16805.0,5.20152998]
[1673001943341,0.00519262,16806.0,16805.0,4.9787397]
[1673001945666,0.00519262,16806.0,16805.0,4.6780397]
[1673001945978,0.00519262,16806.0,16805.0,4.9787397]
[1673001947240,0.00519262,16806.0,16805.0,1.2087397]
[1673001947559,0.00519262,16806.0,16805.0,0.9080397]
[1673001947768,0.00519262,16806.0,16805.0,1.2087397]
[1673001948288,0.00519262,16806.0,16805.0,0.9080397]
[1673001948493,0.00519262,16806.0,16805.0,1.2087397]
[1673001948710,0.00519262,16806.0,16805.0,0.9080397]
[1673001948926,0.00519262,16806.0,16805.0,1.2087397]
[1673001965428,0.00511681,16806.0,16805.0,1.2087397]
[1673001966793,0.00511681,16806.0,16805.0,0.9080397]
[1673001974986,0.00511681,16806.0,16805.0,1.2087397]
[1673001975830,0.00511681,16806.0,16805.0,0.9080397]
[1673001976041,0.00511681,16806.0,16805.0,1.2087397]
[1673001977512,0.00511681,16806.0,16805.0,4.9787397]
[1673001980565,0.00511681,16806.0,16805.0,4.6780397]
[1673001980778,0.00511681,16806.0,16805.0,4.9787397]
[1673001981721,0.00511681,16806.0,16805.0,1.2087397]
[1673001982148,0.00511681,16806.0,16805.0,4.9787397]
[1673001982770,0.00511681,16806.0,16805.0,1.2087397]
[1673001983297,0.00511681,16806.0,16805.0,4.9787397]
[1673001985823,0.00511681,16806.0,16805.0,4.6780397]
[1673001986036,0.00511681,16806.0,16805.0,4.9787397]
[1673001987286,0.00511681,16806.0,16805.0,1.2087397]